[Event "31st Roquetas de Mar Open 2020"]
[Site "Roquetas de Mar"]
[Date "2020.01.02"]
[Round "1.5"]
[White "Sivuk, Vitaly"]
[Black "Yugina, Maria"]
[Result "1-0"]
[ECO "E00"]
[WhiteElo "2579"]
[BlackElo "2089"]
[Annotator "RC"]
[PlyCount "53"]
[EventDate "2020.01.02"]
[EventType "swiss"]
[EventCountry "ESP"]
[SourceTitle "playchess.com"]
[Source "ChessBase"]
[SourceQuality "1"]
[TimeControl "5400+30"]

1. d4 {[%emt 0:00:00]} e6 {[%emt 0:00:00]} 2. c4 {[%emt 0:00:00]} Bb4+ {[%emt 0:00:21]} 3. Nd2 {[%emt 0:00:00]} b6 {[%emt 0:02:26]} 4. a3 {[%emt 0:00:43]} Bxd2+ {[%emt 0:00:27]} 5. Qxd2 {[%emt 0:00:09]} Bb7 {[%emt 0:01:54]} 6. b4 {[%emt 0:00:42]} f5 {[%emt 0:01:33]} 7. Bb2 {[%emt 0:00:22]} Nf6 {[%emt 0:00:32]} 8. f3 {[%emt 0:00:44]} O-O {[%emt 0:01:46]} 9. e3 {[%emt 0:00:52]} d6 {[%emt 0:12:52]} 10. Bd3 {[%emt 0:00:21]} Qe7 {[%emt 0:02:08]} 11. Ne2 {[%emt 0:00:48]} Nbd7 {[%emt 0:00:19]} 12. O-O {[%emt 0:00:42]} Rae8 {[%emt 0:00:20]} 13. Rae1 {[%emt 0:02:19]} Rf7 {[%emt 0:03:03]} 14. Ng3 {[%emt 0:06:56]} Nf8 {[%emt 0:06:18]} 15. d5 {[%emt 0:01:56]} exd5 {[%emt 0:02:49]} 16. Nxf5 {[%emt 0:00:29]} Qd7 {[%emt 0:02:58]} 17. cxd5 {[%emt 0:00:11]} Bxd5 {[%emt 0:03:13]} 18. e4 {[%emt 0:00:28]} Be6 {[%emt 0:00:58]} 19. Nd4 {[%emt 0:00:17]} Kh8 {[%emt 0:13:51]} 20. Bb5 {[%emt 0:00:17]} Qc8 {[%emt 0:00:52]} 21. Bxe8 {[%emt 0:00:11]} Nxe8 {[%emt 0:00:49]} 22. Nxe6 {[%emt 0:03:13]} Nxe6 {[%emt 0:01:31]} 23. f4 {[%emt 0:00:33]} Qd7 {[%emt 0:14:49]} 24. e5 {[%emt 0:01:04]} Nf8 {[%emt 0:01:56]} 25. e6 {[%emt 0:00:29]} Nxe6 {[%emt 0:00:22]} 26. Qe3 {[%emt 0:00:07]} Re7 {[%emt 0:01:07]} 27. f5 {[%emt 0:00:11]} 1-0

[Event "31st Roquetas de Mar Open 2020"]
[Site "Roquetas de Mar"]
[Date "2020.01.02"]
[Round "1.8"]
[White "Samuel Lares, Jairo"]
[Black "Bjerre, Jonas Buhl"]
[Result "0-1"]
[ECO "A45"]
[WhiteElo "2063"]
[BlackElo "2535"]
[Annotator "RC"]
[PlyCount "124"]
[EventDate "2020.01.02"]
[EventType "swiss"]
[EventCountry "ESP"]
[SourceTitle "playchess.com"]
[Source "ChessBase"]
[SourceQuality "1"]
[TimeControl "5400+30"]

1. d4 {[%emt 0:00:00]} Nf6 {[%emt 0:00:53]} 2. Nc3 {[%emt 0:00:00]} d5 {[%emt 0:01:00]} 3. Bf4 {[%emt 0:00:00]} c5 {[%emt 0:04:10]} 4. e3 {[%emt 0:00:20]} cxd4 {[%emt 0:01:06]} 5. exd4 {[%emt 0:00:04]} a6 {[%emt 0:00:54]} 6. Nf3 {[%emt 0:00:47]} Nc6 {[%emt 0:03:17]} 7. Be2 {[%emt 0:00:58]} Bg4 {[%emt 0:05:55]} 8. Ne5 {[%emt 0:16:12]} Bxe2 {[%emt 0:03:10]} 9. Nxe2 {[%emt 0:16:25]} e6 {[%emt 0:05:43]} 10. O-O {[%emt 0:04:51]} Be7 {[%emt 0:02:38]} 11. c4 {[%emt 0:05:51]} dxc4 {[%emt 0:09:54]} 12. Nxc6 {[%emt 0:01:54]} bxc6 {[%emt 0:00:10]} 13. Qa4 {[%emt 0:01:52]} Qb6 {[%emt 0:05:44]} 14. Qxc4 {[%emt 0:05:52]} O-O {[%emt 0:00:53]} 15. b3 {[%emt 0:01:46]} Rac8 {[%emt 0:03:49]} 16. Nc3 {[%emt 0:12:55]} Rfd8 {[%emt 0:08:30]} 17. Rfd1 {[%emt 0:05:09]} Qa7 {[%emt 0:10:39]} 18. Na4 {[%emt 0:08:48]} Rd5 {[%emt 0:01:40]} 19. Rac1 {[%emt 0:06:03]} Ne4 {[%emt 0:10:06]} 20. b4 {[%emt 0:04:21]} Rcd8 {[%emt 0:06:37]} 21. Be3 {[%emt 0:05:26]} e5 {[%emt 0:03:34]} 22. Qxc6 {[%emt 0:00:51]} exd4 {[%emt 0:00:51]} 23. Bf4 {[%emt 0:00:13]} d3 {[%emt 0:07:42]} 24. Nb6 {[%emt 0:00:47]} Nxf2 {[%emt 0:01:23]} 25. Rd2 {[%emt 0:00:34]} Ne4 {[%emt 0:00:34]} 26. Be3 {[%emt 0:00:02]} Bg5 {[%emt 0:00:54]} 27. Bxg5 {[%emt 0:00:49]} Rxg5 {[%emt 0:01:10]} 28. Qxe4 {[%emt 0:00:29]} Qxb6+ {[%emt 0:00:05]} 29. Kh1 {[%emt 0:00:12]} Rgd5 {[%emt 0:00:27]} 30. a3 {[%emt 0:00:18]} h6 {[%emt 0:00:41]} 31. h3 {[%emt 0:00:22]} Qd6 {[%emt 0:00:26]} 32. Rcd1 {[%emt 0:01:06]} Rd4 {[%emt 0:00:24]} 33. Qf3 {[%emt 0:00:35]} Qd7 {[%emt 0:00:20]} 34. Kg1 {[%emt 0:00:34]} Qb5 {[%emt 0:00:17]} 35. Kh1 {[%emt 0:00:26]} Qc4 {[%emt 0:00:08]} 36. Qb7 {[%emt 0:00:27]} R8d6 {[%emt 0:01:25]} 37. Kh2 {[%emt 0:00:33]} R4d5 {[%emt 0:00:31]} 38. Rf1 {[%emt 0:00:34]} Rd7 {[%emt 0:00:17]} 39. Qa8+ {[%emt 0:00:30]} Rd8 {[%emt 0:00:32]} 40. Qa7 {[%emt 0:00:28]} R5d7 {[%emt 0:00:18]} 41. Qf2 {[%emt 0:00:07]} Qc3 {[%emt 0:00:26]} 42. Rb1 {[%emt 0:00:40]} Qxa3 {[%emt 0:00:46]} 43. b5 {[%emt 0:00:02]} axb5 {[%emt 0:00:17]} 44. Rxb5 {[%emt 0:00:04]} Qc1 {[%emt 0:00:24]} 45. Rbb2 {[%emt 0:01:07]} Re8 {[%emt 0:01:01]} 46. Rb3 {[%emt 0:00:54]} Qc4 {[%emt 0:00:41]} 47. Rbb2 {[%emt 0:00:37]} Rde7 {[%emt 0:00:18]} 48. Qg3 {[%emt 0:00:34]} Re3 {[%emt 0:00:39]} 49. Qd6 {[%emt 0:00:09]} R8e6 {[%emt 0:00:37]} 50. Qd8+ {[%emt 0:00:43]} Kh7 {[%emt 0:00:07]} 51. Rf2 {[%emt 0:00:10]} Qe4 {[%emt 0:00:46]} 52. Rb5 {[%emt 0:00:58]} Re2 {[%emt 0:00:28]} 53. Rbf5 {[%emt 0:00:27]} Rxf2 {[%emt 0:00:29]} 54. Rxf2 {[%emt 0:00:04]} Qe5+ {[%emt 0:00:11]} 55. g3 {[%emt 0:00:39]} Rd6 {[%emt 0:00:15]} 56. Qb8 {[%emt 0:00:49]} Qd5 {[%emt 0:01:10]} 57. Qb1 {[%emt 0:00:31]} Rd7 {[%emt 0:00:32]} 58. Rd2 {[%emt 0:00:26]} Qe4 {[%emt 0:00:16]} 59. Qd1 {[%emt 0:00:32]} Qe3 {[%emt 0:00:23]} 60. Kg2 {[%emt 0:00:12]} Rd6 {[%emt 0:00:19]} 61. h4 {[%emt 0:00:32]} Rg6 {[%emt 0:00:25]} 62. Rxd3 {[%emt 0:00:36]} Rxg3+ {[%emt 0:00:08]} 0-1

[Event "31st Roquetas de Mar Open 2020"]
[Site "Roquetas de Mar"]
[Date "2020.01.02"]
[Round "1.9"]
[White "Harutyunian, Tigran K."]
[Black "Dylag, Emilia"]
[Result "1-0"]
[ECO "A05"]
[WhiteElo "2533"]
[BlackElo "2063"]
[Annotator "ChessBase"]
[PlyCount "71"]
[EventDate "2020.01.02"]
[EventType "swiss"]
[EventCountry "ESP"]
[SourceTitle "playchess.com"]
[Source "ChessBase"]
[SourceQuality "1"]
[TimeControl "5400+30"]

1. Nf3 {[%emt 0:00:00]} Nf6 {[%emt 0:00:00]} 2. g3 {[%emt 0:00:37]} g6 {[%emt 0:00:54]} 3. Bg2 {[%emt 0:00:08]} Bg7 {[%emt 0:00:33]} 4. d4 {[%emt 0:00:14]} d6 {[%emt 0:00:49]} 5. O-O {[%emt 0:00:14]} O-O {[%emt 0:00:36]} 6. Re1 {[%emt 0:00:27]} Nc6 {[%emt 0:04:22]} 7. d5 {[%emt 0:01:57]} Na5 {[%emt 0:00:57]} 8. e4 {[%emt 0:04:11]} c5 {[%emt 0:05:10]} 9. e5 {[%emt 0:09:07]} dxe5 {[%emt 0:01:47]} 10. Nxe5 {[%emt 0:00:09]} Ne8 {[%emt 0:10:51]} 11. Nd3 {[%emt 0:07:15]} c4 {[%emt 0:09:20]} 12. Nf4 {[%emt 0:00:43]} Nd6 {[%emt 0:02:11]} 13. c3 {[%emt 0:00:24]} b5 {[%emt 0:04:27]} 14. Nd2 {[%emt 0:03:50]} Rb8 {[%emt 0:04:14]} 15. Nf3 {[%emt 0:00:11]} Bg4 {[%emt 0:09:03]} 16. Be3 {[%emt 0:02:59]} b4 {[%emt 0:06:52]} 17. Bd4 {[%emt 0:03:34]} Bxd4 {[%emt 0:04:33]} 18. Qxd4 {[%emt 0:00:08]} Nb5 {[%emt 0:08:48]} 19. Qe3 {[%emt 0:01:36]} bxc3 {[%emt 0:00:26]} 20. bxc3 {[%emt 0:00:12]} Bxf3 {[%emt 0:02:30]} 21. Bxf3 {[%emt 0:00:07]} Na3 {[%emt 0:02:36]} 22. Re2 {[%emt 0:00:16]} Re8 {[%emt 0:06:02]} 23. Qxa7 {[%emt 0:05:06]} Rb7 {[%emt 0:06:33]} 24. Qe3 {[%emt 0:03:18]} Qd6 {[%emt 0:01:23]} 25. Rae1 {[%emt 0:00:21]} Rb6 {[%emt 0:01:57]} 26. h4 {[%emt 0:01:58]} Nb7 {[%emt 0:01:01]} 27. Nh3 {[%emt 0:00:47]} Qf6 {[%emt 0:02:08]} 28. Kg2 {[%emt 0:00:17]} Kg7 {[%emt 0:01:23]} 29. Ng5 {[%emt 0:00:24]} Ra6 {[%emt 0:01:03]} 30. Ne4 {[%emt 0:00:27]} Qe5 {[%emt 0:00:15]} 31. Qd2 {[%emt 0:00:42]} Qc7 {[%emt 0:00:32]} 32. h5 {[%emt 0:00:36]} Nd6 {[%emt 0:01:04]} 33. h6+ {[%emt 0:00:25]} Kf8 {[%emt 0:01:04]} 34. Qd4 {[%emt 0:00:16]} e5 {[%emt 0:00:54]} 35. dxe6 {[%emt 0:00:11]} Rxe6 {[%emt 0:00:07]} 36. Ng5 {[%emt 0:00:55]} 1-0

[Event "31st Roquetas de Mar Open 2020"]
[Site "Roquetas de Mar"]
[Date "2020.01.02"]
[Round "1.11"]
[White "Maiorov, Nikita"]
[Black "Lopez Mijail, Nicolas"]
[Result "1-0"]
[ECO "E41"]
[WhiteElo "2519"]
[BlackElo "2056"]
[Annotator "ChessBase"]
[PlyCount "81"]
[EventDate "2020.01.02"]
[EventType "swiss"]
[EventCountry "ESP"]
[SourceTitle "playchess.com"]
[Source "ChessBase"]
[SourceQuality "1"]
[TimeControl "5400+30"]

1. d4 {[%emt 0:00:00]} Nf6 {[%emt 0:00:00]} 2. c4 {[%emt 0:00:00]} e6 {[%emt 0:00:00]} 3. Nc3 {[%emt 0:00:00]} Bb4 {[%emt 0:00:00]} 4. e3 {[%emt 0:00:00]} c5 {[%emt 0:00:03]} 5. Bd3 {[%emt 0:00:05]} Nc6 {[%emt 0:00:42]} 6. Nf3 {[%emt 0:00:04]} cxd4 {[%emt 0:01:47]} 7. exd4 {[%emt 0:00:06]} d5 {[%emt 0:00:10]} 8. O-O {[%emt 0:00:41]} O-O {[%emt 0:00:47]} 9. a3 {[%emt 0:01:18]} Be7 {[%emt 0:00:28]} 10. c5 {[%emt 0:02:07]} b6 {[%emt 0:07:08]} 11. Bb5 {[%emt 0:06:13]} Bd7 {[%emt 0:01:46]} 12. b4 {[%emt 0:00:22]} bxc5 {[%emt 0:01:02]} 13. bxc5 {[%emt 0:02:42]} Ne4 {[%emt 0:03:25]} 14. Ne2 {[%emt 0:04:40]} Bf6 {[%emt 0:06:03]} 15. Bf4 {[%emt 0:03:34]} Qa5 {[%emt 0:13:35]} 16. a4 {[%emt 0:07:30]} a6 {[%emt 0:08:08]} 17. Bxc6 {[%emt 0:00:05]} Bxc6 {[%emt 0:00:06]} 18. Qc2 {[%emt 0:00:10]} Rfc8 {[%emt 0:03:31]} 19. h3 {[%emt 0:02:13]} Ra7 {[%emt 0:01:48]} 20. Rfb1 {[%emt 0:02:35]} Rb7 {[%emt 0:01:54]} 21. Rxb7 {[%emt 0:00:31]} Bxb7 {[%emt 0:00:07]} 22. Be5 {[%emt 0:00:44]} Bxe5 {[%emt 0:06:48]} 23. Nxe5 {[%emt 0:00:04]} f6 {[%emt 0:00:25]} 24. Nf3 {[%emt 0:04:16]} Bc6 {[%emt 0:01:56]} 25. Qb2 {[%emt 0:03:21]} Qc7 {[%emt 0:08:36]} 26. Nc3 {[%emt 0:02:39]} Rb8 {[%emt 0:00:38]} 27. Qc2 {[%emt 0:00:05]} Nxc3 {[%emt 0:03:08]} 28. Qxc3 {[%emt 0:00:10]} a5 {[%emt 0:00:13]} 29. Ne1 {[%emt 0:02:27]} Rb4 {[%emt 0:01:45]} 30. Nd3 {[%emt 0:00:13]} Rxa4 {[%emt 0:05:19]} 31. Rb1 {[%emt 0:00:59]} Rc4 {[%emt 0:10:09]} 32. Qb2 {[%emt 0:00:07]} Qd7 {[%emt 0:05:02]} 33. Qb8+ {[%emt 0:02:30]} Kf7 {[%emt 0:00:29]} 34. Qf4 {[%emt 0:00:04]} g5 {[%emt 0:05:43]} 35. Qe3 {[%emt 0:04:29]} a4 {[%emt 0:02:18]} 36. f4 {[%emt 0:00:16]} a3 {[%emt 0:01:35]} 37. fxg5 {[%emt 0:00:17]} a2 {[%emt 0:00:15]} 38. Rf1 {[%emt 0:00:17]} Qa7 {[%emt 0:01:26]} 39. Ne5+ {[%emt 0:02:11]} Kg7 {[%emt 0:00:38]} 40. gxf6+ {[%emt 0:00:25]} Kh8 {[%emt 0:00:13]} 41. f7 {[%emt 0:00:17]} 1-0

[Event "31st Roquetas de Mar Open 2020"]
[Site "Roquetas de Mar"]
[Date "2020.01.02"]
[Round "1.12"]
[White "Aledo Yanguas, Javier"]
[Black "Shariyazdanov, Andrey"]
[Result "0-1"]
[ECO "B06"]
[WhiteElo "2044"]
[BlackElo "2519"]
[Annotator "ChessBase"]
[PlyCount "66"]
[EventDate "2020.01.02"]
[EventType "swiss"]
[EventCountry "ESP"]
[SourceTitle "playchess.com"]
[Source "ChessBase"]
[SourceQuality "1"]
[TimeControl "5400+30"]

1. e4 {[%emt 0:00:00]} g6 {[%emt 0:00:00]} 2. d4 {[%emt 0:00:00]} Bg7 {[%emt 0:00:00]} 3. Nf3 {[%emt 0:00:32]} d6 {[%emt 0:00:06]} 4. Bc4 {[%emt 0:01:38]} Nf6 {[%emt 0:01:12]} 5. Nc3 {[%emt 0:01:40]} O-O {[%emt 0:00:18]} 6. O-O {[%emt 0:00:50]} Bg4 {[%emt 0:00:45]} 7. Be3 {[%emt 0:07:05]} Nc6 {[%emt 0:02:38]} 8. h3 {[%emt 0:03:08]} Bxf3 {[%emt 0:01:37]} 9. Qxf3 {[%emt 0:01:00]} e5 {[%emt 0:03:52]} 10. d5 {[%emt 0:01:24]} Ne7 {[%emt 0:02:07]} 11. Qd1 {[%emt 0:08:52]} c6 {[%emt 0:07:31]} 12. a4 {[%emt 0:09:50]} cxd5 {[%emt 0:01:25]} 13. exd5 {[%emt 0:03:51]} Nf5 {[%emt 0:00:34]} 14. Qd3 {[%emt 0:04:51]} Nxe3 {[%emt 0:05:06]} 15. fxe3 {[%emt 0:04:54]} Nh5 {[%emt 0:03:39]} 16. g4 {[%emt 0:05:08]} Nf6 {[%emt 0:01:58]} 17. e4 {[%emt 0:03:03]} Rc8 {[%emt 0:03:17]} 18. a5 {[%emt 0:06:21]} a6 {[%emt 0:00:59]} 19. Ra3 {[%emt 0:03:11]} h5 {[%emt 0:02:37]} 20. gxh5 {[%emt 0:10:07]} Nxh5 {[%emt 0:00:51]} 21. Ne2 {[%emt 0:02:02]} Bh6 {[%emt 0:01:39]} 22. b4 {[%emt 0:03:18]} Qh4 {[%emt 0:02:07]} 23. Ba2 {[%emt 0:05:32]} f5 {[%emt 0:03:12]} 24. exf5 {[%emt 0:05:23]} gxf5 {[%emt 0:01:40]} 25. c4 {[%emt 0:03:36]} e4 {[%emt 0:01:18]} 26. Qd4 {[%emt 0:01:26]} Rc7 {[%emt 0:03:15]} 27. Qf2 {[%emt 0:01:17]} Rg7+ {[%emt 0:00:27]} 28. Kh2 {[%emt 0:01:03]} Qf6 {[%emt 0:03:07]} 29. Rg1 {[%emt 0:02:39]} f4 {[%emt 0:01:23]} 30. Rxg7+ {[%emt 0:00:28]} Qxg7 {[%emt 0:01:05]} 31. Nc3 {[%emt 0:00:50]} f3 {[%emt 0:01:20]} 32. Nxe4 {[%emt 0:00:30]} Qe5+ {[%emt 0:00:25]} 33. Ng3 {[%emt 0:00:30]} Nxg3 {[%emt 0:01:19]} 0-1

[Event "31st Roquetas de Mar Open 2020"]
[Site "Roquetas de Mar"]
[Date "2020.01.02"]
[Round "1.13"]
[White "Klekowski, Maciej"]
[Black "Atipov Hadzhiev, Cristian"]
[Result "1-0"]
[ECO "B37"]
[WhiteElo "2515"]
[BlackElo "2032"]
[Annotator "ChessBase"]
[PlyCount "61"]
[EventDate "2020.01.02"]
[EventType "swiss"]
[EventCountry "ESP"]
[SourceTitle "playchess.com"]
[Source "ChessBase"]
[SourceQuality "1"]
[TimeControl "5400+30"]

1. c4 c5 2. Nf3 Nc6 3. d4 cxd4 4. Nxd4 g6 5. e4 Bg7 6. Nc2 Nf6 7. Nc3 d6 8. Be2 O-O 9. O-O a5 10. Be3 Be6 11. f3 Nd7 12. Qd2 Nc5 13. Na3 a4 14. Rfd1 Qa5 15. Rac1 Rfc8 16. Bf1 Ne5 17. Qe2 Ncd7 18. Nd5 Bxd5 19. exd5 Nc5 20. Kh1 h5 21. Nb5 Re8 22. Rb1 Rac8 23. b4 axb3 24. axb3 Na6 25. h3 Nd7 26. b4 Qd8 27. Qf2 Ne5 28. Bb6 Qd7 29. c5 dxc5 30. bxc5 Qf5 31. Na7 1-0

[Event "31st Roquetas de Mar Open 2020"]
[Site "Roquetas de Mar"]
[Date "2020.01.02"]
[Round "1.14"]
[White "Buijs Martin, Urtzi"]
[Black "Sosa, Tomas"]
[Result "0-1"]
[ECO "B34"]
[WhiteElo "2028"]
[BlackElo "2508"]
[Annotator "ChessBase"]
[PlyCount "81"]
[EventDate "2020.01.02"]
[EventType "swiss"]
[EventCountry "ESP"]
[SourceTitle "playchess.com"]
[Source "ChessBase"]
[SourceQuality "1"]
[TimeControl "5400+30"]

1. e4 {[%emt 0:00:00]} c5 {[%emt 0:00:13]} 2. Nf3 {[%emt 0:00:00]} Nc6 {[%emt 0:00:10]} 3. d4 {[%emt 0:00:00]} cxd4 {[%emt 0:00:04]} 4. Nxd4 {[%emt 0:00:03]} Nf6 {[%emt 0:00:09]} 5. Nc3 {[%emt 0:00:08]} e5 {[%emt 0:00:15]} 6. Ndb5 {[%emt 0:00:12]} h6 {[%emt 0:00:09]} 7. Nd6+ {[%emt 0:07:10]} Bxd6 {[%emt 0:00:09]} 8. Qxd6 {[%emt 0:00:04]} Qe7 {[%emt 0:00:07]} 9. Qxe7+ {[%emt 0:04:52]} Kxe7 {[%emt 0:00:13]} 10. Be3 {[%emt 0:05:39]} d6 {[%emt 0:00:38]} 11. O-O-O {[%emt 0:03:38]} Be6 {[%emt 0:00:45]} 12. Bb5 {[%emt 0:01:21]} Rhc8 {[%emt 0:02:40]} 13. h3 {[%emt 0:08:28]} Na5 {[%emt 0:03:35]} 14. Rhe1 {[%emt 0:11:35]} Rxc3 {[%emt 0:03:47]} 15. bxc3 {[%emt 0:00:08]} Nxe4 {[%emt 0:00:07]} 16. f4 {[%emt 0:13:54]} Nxc3 {[%emt 0:01:22]} 17. Bd2 {[%emt 0:02:13]} Nxb5 {[%emt 0:17:34]} 18. Bxa5 {[%emt 0:00:30]} exf4 {[%emt 0:00:14]} 19. a4 {[%emt 0:12:38]} Na3 {[%emt 0:00:37]} 20. Bc7 {[%emt 0:00:47]} Nc4 {[%emt 0:00:30]} 21. Rd4 {[%emt 0:00:24]} Kd7 {[%emt 0:01:17]} 22. Bxd6 {[%emt 0:00:34]} Nxd6 {[%emt 0:00:09]} 23. Red1 {[%emt 0:00:14]} Ke7 {[%emt 0:00:42]} 24. Rxd6 {[%emt 0:00:08]} Rc8 {[%emt 0:00:31]} 25. Kb2 {[%emt 0:00:49]} g5 {[%emt 0:04:24]} 26. R6d4 {[%emt 0:00:38]} Kf6 {[%emt 0:00:53]} 27. Rb4 {[%emt 0:02:09]} Rc7 {[%emt 0:00:29]} 28. Rd8 {[%emt 0:01:46]} Bd7 {[%emt 0:00:43]} 29. a5 {[%emt 0:04:46]} a6 {[%emt 0:07:54]} 30. Rb6+ {[%emt 0:06:00]} Ke7 {[%emt 0:08:35]} 31. Rg8 {[%emt 0:05:34]} Bc6 {[%emt 0:03:23]} 32. h4 {[%emt 0:00:32]} Kf6 {[%emt 0:00:21]} 33. hxg5+ {[%emt 0:06:13]} hxg5 {[%emt 0:00:11]} 34. Kc3 {[%emt 0:00:50]} Kf5 {[%emt 0:00:37]} 35. Rxc6 {[%emt 0:02:21]} Rxc6+ {[%emt 0:00:30]} 36. Kd3 {[%emt 0:00:03]} Re6 {[%emt 0:00:48]} 37. Rb8 {[%emt 0:00:54]} Re7 {[%emt 0:00:09]} 38. Kd4 {[%emt 0:00:17]} g4 {[%emt 0:00:44]} 39. Rh8 {[%emt 0:01:08]} f3 {[%emt 0:00:18]} 40. gxf3 {[%emt 0:00:23]} gxf3 {[%emt 0:00:07]} 41. Rh1 {[%emt 0:00:14] Ke5+} 0-1

[Event "31st Roquetas de Mar Open 2020"]
[Site "Roquetas de Mar"]
[Date "2020.01.02"]
[Round "1.17"]
[White "Marin, Mihail"]
[Black "Bjerre, Tavs"]
[Result "1-0"]
[ECO "A25"]
[WhiteElo "2496"]
[BlackElo "2013"]
[Annotator "ChessBase"]
[PlyCount "43"]
[EventDate "2020.01.02"]
[EventType "swiss"]
[EventCountry "ESP"]
[SourceTitle "playchess.com"]
[Source "ChessBase"]
[SourceQuality "1"]
[TimeControl "5400+30"]

1. c4 {[%emt 0:00:00]} g6 {[%emt 0:00:27]} 2. g3 {[%emt 0:00:00]} Bg7 {[%emt 0:00:19]} 3. Bg2 {[%emt 0:00:00]} e5 {[%emt 0:00:48]} 4. Nc3 {[%emt 0:00:00]} Nc6 {[%emt 0:00:51]} 5. e3 {[%emt 0:00:52]} d6 {[%emt 0:01:35]} 6. Nge2 {[%emt 0:00:07]} f5 {[%emt 0:01:12]} 7. d4 {[%emt 0:00:33]} exd4 {[%emt 0:04:34]} 8. exd4 {[%emt 0:02:06]} Nf6 {[%emt 0:02:54]} 9. d5 {[%emt 0:09:15]} Ne5 {[%emt 0:02:31]} 10. O-O {[%emt 0:07:24]} O-O {[%emt 0:00:14]} 11. b3 {[%emt 0:00:03]} Ne4 {[%emt 0:10:38]} 12. Bb2 {[%emt 0:00:31]} Nxc3 {[%emt 0:09:47]} 13. Bxc3 {[%emt 0:00:20]} Nd7 {[%emt 0:04:46]} 14. Bxg7 {[%emt 0:03:39]} Kxg7 {[%emt 0:00:08]} 15. Nd4 {[%emt 0:00:25]} Nc5 {[%emt 0:10:07]} 16. b4 {[%emt 0:00:42]} Ne4 {[%emt 0:00:36]} 17. Qd3 {[%emt 0:00:14]} a5 {[%emt 0:07:45]} 18. a3 {[%emt 0:00:07]} axb4 {[%emt 0:01:34]} 19. axb4 {[%emt 0:00:06]} Rxa1 {[%emt 0:00:06]} 20. Rxa1 {[%emt 0:00:04]} Qf6 {[%emt 0:05:18]} 21. Re1 {[%emt 0:10:36]} Rf7 {[%emt 0:08:37]} 22. f3 {[%emt 0:02:50]} 1-0

[Event "31st Roquetas de Mar Open 2020"]
[Site "Roquetas de Mar"]
[Date "2020.01.03"]
[Round "3.3"]
[White "Alshameary Puente, Ismael"]
[Black "Bernadskiy, Vitaliy"]
[Result "0-1"]
[ECO "A40"]
[WhiteElo "2385"]
[BlackElo "2588"]
[Annotator "RC"]
[PlyCount "100"]
[EventDate "2020.01.02"]
[EventType "swiss"]
[EventCountry "ESP"]
[SourceTitle "playchess.com"]
[Source "ChessBase"]
[SourceQuality "1"]
[TimeControl "5400+30"]

1. d4 {[%emt 0:00:24]} e6 {[%emt 0:00:00]} 2. c4 {[%emt 0:02:30]} b6 {[%emt 0:00:00]} 3. Nf3 {[%emt 0:00:11]} Bb7 {[%emt 0:00:00]} 4. g3 {[%emt 0:00:52]} Bb4+ {[%emt 0:00:58]} 5. Bd2 {[%emt 0:02:08]} Bxf3 {[%emt 0:00:17]} 6. exf3 {[%emt 0:00:03]} Bxd2+ {[%emt 0:00:03]} 7. Qxd2 {[%emt 0:01:24]} Nf6 {[%emt 0:00:18]} 8. Nc3 {[%emt 0:00:42]} d5 {[%emt 0:02:54]} 9. cxd5 {[%emt 0:07:34]} Nxd5 {[%emt 0:01:38]} 10. Bg2 {[%emt 0:01:14]} Nc6 {[%emt 0:00:56]} 11. f4 {[%emt 0:02:14]} Nce7 {[%emt 0:00:49]} 12. O-O {[%emt 0:00:23]} O-O {[%emt 0:00:06]} 13. Rac1 {[%emt 0:01:32]} Rc8 {[%emt 0:00:12]} 14. Rfe1 {[%emt 0:06:25]} Qd7 {[%emt 0:00:54]} 15. Re5 {[%emt 0:09:00]} Nf6 {[%emt 0:04:09]} 16. Rd1 {[%emt 0:13:16]} Rfd8 {[%emt 0:02:37]} 17. Re2 {[%emt 0:02:51]} c6 {[%emt 0:05:12]} 18. Bh3 {[%emt 0:07:20]} Qb7 {[%emt 0:04:47]} 19. Qc2 {[%emt 0:01:53]} g6 {[%emt 0:01:26]} 20. Qb3 {[%emt 0:00:52]} Rd6 {[%emt 0:02:05]} 21. a4 {[%emt 0:06:32]} Qd7 {[%emt 0:04:01]} 22. a5 {[%emt 0:05:59]} b5 {[%emt 0:00:46]} 23. Qb4 {[%emt 0:06:02]} Ned5 {[%emt 0:15:36]} 24. Nxd5 {[%emt 0:07:47]} cxd5 {[%emt 0:03:39]} 25. Bf1 {[%emt 0:01:11]} a6 {[%emt 0:00:28]} 26. h4 {[%emt 0:00:48]} Rdc6 {[%emt 0:00:36]} 27. Bg2 {[%emt 0:02:25]} h5 {[%emt 0:00:37]} 28. Bf3 {[%emt 0:04:51]} Qd8 {[%emt 0:00:43]} 29. Kg2 {[%emt 0:01:57]} Rc4 {[%emt 0:00:42]} 30. Qe1 {[%emt 0:00:02]} Qf8 {[%emt 0:00:10]} 31. b3 {[%emt 0:01:33]} Rc3 {[%emt 0:00:57]} 32. Re3 {[%emt 0:00:40]} Rc2 {[%emt 0:00:05]} 33. Ra1 {[%emt 0:00:33]} Qg7 {[%emt 0:00:57]} 34. Re2 {[%emt 0:01:10]} R2c3 {[%emt 0:01:03]} 35. Re3 {[%emt 0:00:13]} R3c7 {[%emt 0:00:11]} 36. Rd1 {[%emt 0:00:33]} Nd7 {[%emt 0:00:44]} 37. f5 {[%emt 0:00:22]} gxf5 {[%emt 0:00:07]} 38. Bxh5 {[%emt 0:00:16]} Nf6 {[%emt 0:00:13]} 39. Bf3 {[%emt 0:00:19]} Rc2 {[%emt 0:01:16]} 40. Rd2 {[%emt 0:00:52]} R2c6 {[%emt 0:00:17]} 41. Rdd3 {[%emt 0:00:38]} Ne4 {[%emt 0:00:15]} 42. Bxe4 {[%emt 0:00:48]} fxe4 {[%emt 0:00:40]} 43. Rd1 {[%emt 0:00:52]} f5 {[%emt 0:00:11]} 44. Kh2 {[%emt 0:01:01]} Kf7 {[%emt 0:02:38]} 45. Qe2 {[%emt 0:01:09]} Rh8 {[%emt 0:00:06]} 46. Qf1 {[%emt 0:01:01]} f4 {[%emt 0:01:25]} 47. Ree1 {[%emt 0:00:01]} Rc2 {[%emt 0:01:18]} 48. Re2 {[%emt 0:00:53]} Rhc8 {[%emt 0:00:29]} 49. Rxc2 {[%emt 0:00:31]} Rxc2 {[%emt 0:00:04]} 50. Rc1 {[%emt 0:00:37]} Qxg3+ {[%emt 0:00:10]} 0-1